bitfinex/quotes_ETHUSD_20241009
["timestamp","ask_amount","ask_price","bid_price","bid_amount"]
[1728452642724,8.15438,2452.7,2452.2,4.07795]
[1728452642884,0.10947195,2452.6,2452.2,4.07795]
[1728452643087,0.10947195,2452.6,2452.2,5.26199799]
[1728452643556,4.18678195,2452.6,2452.2,5.26199799]
[1728452645526,4.07748,2452.5,2452.1,0.7761]
[1728452645827,0.10939657,2452.4,2452.1,0.7761]
[1728452647642,4.18704657,2452.4,2451.8,8.15704]
[1728452647809,4.18704657,2452.4,2451.9,1.616304]
[1728452648013,4.07781,2452.3,2451.9,0.8006]
[1728452648352,0.10909847,2452.2,2451.9,0.8006]
[1728452648506,4.07781,2452.3,2451.9,0.8006]
[1728452648701,0.10912021,2452.2,2451.9,0.8006]
[1728452648897,4.07781,2452.3,2451.9,0.8006]
[1728452649119,0.10914195,2452.2,2451.9,0.8006]
[1728452649341,4.07781,2452.3,2451.9,0.8006]
[1728452649498,0.10916368,2452.2,2451.9,0.8006]
[1728452649698,4.07781,2452.3,2451.9,0.8006]
[1728452649899,0.10918542,2452.2,2451.9,0.8006]
[1728452650250,4.07781,2452.3,2451.9,0.8006]
[1728452650399,0.10910402,2452.1,2451.9,0.8006]
[1728452650602,4.07781,2452.3,2451.9,0.8006]
[1728452650931,8.36360286,2452.5,2451.9,4.87906]
[1728452651138,0.1091373,2452.4,2451.9,4.87906]
[1728452651643,4.1867973,2452.4,2451.9,4.87906]
[1728452654260,4.1867973,2452.4,2451.9,0.8006]
[1728452654806,0.1091373,2452.4,2451.9,4.87906]
[1728452655661,4.1868073,2452.4,2451.9,4.87906]
[1728452656742,0.1091373,2452.4,2452.0,4.0783]
[1728452658889,0.1091373,2452.4,2452.0,8.15652]
[1728452659781,0.1091373,2452.4,2452.0,4.07822]
[1728452663183,0.1091373,2452.4,2452.0,8.15644]
[1728452663349,0.1091373,2452.4,2452.0,9.33149851]
[1728452664152,0.1091373,2452.4,2452.0,5.25327851]
[1728452664645,0.1091373,2452.4,2452.0,9.33148851]
[1728452665188,0.1091373,2452.4,2452.0,5.25326851]
[1728452665486,0.1091373,2452.4,2452.1,2.52836011]
[1728452665710,0.1091373,2452.4,2452.2,0.77816186]
[1728452665869,3.2030322,2452.6,2452.2,0.77816186]
[1728452666368,0.10565979,2452.5,2452.2,0.77816186]
[1728452666978,0.10565979,2452.5,2452.2,4.85603186]
[1728452667215,0.10565979,2452.5,2452.3,0.8316]
[1728452669015,0.10565979,2452.5,2452.3,4.90937]
[1728452669388,0.10565979,2452.5,2452.4,4.87763]
[1728452669600,3.0,2452.8,2452.4,4.87763]
[1728452669601,3.0,2452.8,2452.6,4.07729]
[1728452669784,3.0,2452.8,2452.7,0.7972]
[1728452670416,3.0,2452.8,2452.5,0.7972]
[1728452671048,7.07699,2452.8,2452.5,0.7972]
[1728452671194,3.0,2452.8,2452.5,0.7972]
[1728452672127,7.07697,2452.8,2452.5,0.7972]
[1728452672997,3.0,2452.8,2452.5,0.7972]
[1728452673207,3.0,2452.8,2452.5,1.45720801]
[1728452673405,3.0,2452.8,2452.5,0.7972]
[1728452677415,3.0,2452.9,2452.5,0.7972]
[1728452677941,7.07684,2452.9,2452.5,0.7972]
[1728452678521,3.0,2452.9,2452.5,2.52246011]
[1728452678711,0.10229282,2452.8,2452.5,2.52246011]
[1728452680358,0.10229282,2452.8,2452.7,1.72526011]
[1728452680673,3.0,2453.0,2452.7,2.54416011]
[1728452681170,0.10241066,2452.9,2452.7,2.54416011]
[1728452682937,4.07648,2453.1,2452.7,2.54416011]
[1728452683137,0.10249859,2453.0,2452.7,3.27230292]
[1728452690564,0.10249859,2453.0,2452.7,1.54704281]
[1728452690972,4.17916859,2453.0,2452.7,1.54704281]
[1728452691170,4.17916859,2453.0,2452.7,0.8189]
[1728452691560,4.07687,2452.9,2452.5,1.47709801]
[1728452691761,0.10233291,2452.8,2452.5,1.47709801]
[1728452694297,0.10233291,2452.8,2452.5,5.55453801]
[1728452694515,0.10233291,2452.8,2452.6,0.9632068]
[1728452694655,4.07667,2453.0,2452.6,0.9632068]
[1728452694861,0.09871057,2452.7,2452.5,5.55453801]
[1728452695061,4.07667,2453.0,2452.5,5.55453801]
[1728452695062,8.15342,2453.0,2452.5,5.55453801]
[1728452695336,0.09862984,2452.6,2452.5,5.55453801]
[1728452695814,8.15343,2453.0,2452.5,1.47709801]
[1728452696020,0.09887598,2452.9,2452.5,1.47709801]
[1728452700446,0.09887598,2452.9,2452.5,5.55452801]
[1728452701939,4.17568598,2452.9,2452.5,5.55452801]
[1728452702311,4.17568598,2452.9,2452.5,1.47709801]
[1728452702508,4.17568598,2452.9,2452.5,0.8171]
[1728452703031,0.09887598,2452.9,2452.5,0.8171]
[1728452703737,0.09887598,2452.9,2452.5,4.89454]
[1728452703945,0.09887598,2452.9,2452.6,0.8105]
[1728452705439,4.17570598,2452.9,2452.6,0.8105]
[1728452705732,4.17570598,2452.9,2452.4,0.7771]
[1728452706093,4.07716,2452.7,2452.4,0.7771]
[1728452706526,0.0987433,2452.6,2452.4,0.7771]
[1728452708155,0.0987433,2452.6,2452.2,4.89576]
[1728452708444,0.0987433,2452.6,2452.2,0.8178]
[1728452708613,4.07757,2452.5,2452.0,4.89609]
[1728452708808,0.09856069,2452.4,2452.0,4.89607]
[1728452709744,0.09856069,2452.4,2451.8,0.8293]
[1728452709745,4.07808,2452.2,2451.8,0.8293]
[1728452710099,0.09828278,2452.1,2451.8,0.8293]
[1728452710848,4.0783,2452.0,2451.6,0.7559]
[1728452711249,0.09817725,2451.9,2451.6,0.7559]
[1728452711751,4.17666725,2451.9,2451.6,0.7559]
[1728452712139,0.09817725,2451.9,2451.6,0.7559]
[1728452712439,4.0783,2452.0,2451.6,0.7559]
[1728452712620,4.17663005,2451.9,2451.6,0.7559]
[1728452713114,4.17663005,2451.9,2451.4,0.7721]
[1728452713316,4.17672005,2451.9,2451.4,0.7721]
[1728452713627,4.07879,2451.8,2451.4,0.7721]
[1728452713815,0.09786505,2451.7,2451.4,0.7721]
[1728452714160,4.07879,2451.8,2451.4,0.7721]
[1728452714313,4.07879,2451.8,2451.2,2.47566011]
[1728452714314,4.17676426,2451.6,2451.2,2.47566011]
[1728452714527,4.07898,2451.6,2451.2,3.53918812]
[1728452714722,4.07898,2451.6,2451.2,1.81392801]
[1728452714723,0.09770346,2451.5,2451.2,1.81392801]
[1728452714949,4.17697346,2451.5,2451.0,2.47566011]
[1728452715130,4.17697346,2451.5,2451.0,6.55562011]
[1728452716036,4.07932,2451.4,2451.0,0.7504]
[1728452716244,4.17696635,2451.3,2451.0,0.7504]
[1728452717726,4.07963,2451.2,2451.0,0.7504]
[1728452718119,0.09730091,2451.1,2451.0,0.7504]
[1728452722176,0.09730091,2451.1,2451.0,7.21120512]
[1728452722478,11.50888,2451.7,2451.1,4.07969]
[1728452722640,4.07898,2451.6,2451.1,4.07969]
[1728452723648,0.09748336,2451.5,2451.1,4.07969]
[1728452723956,0.09748336,2451.5,2451.2,1.12908951]
[1728452728043,8.1578,2451.7,2451.2,1.12908951]
[1728452728242,0.09430033,2451.6,2451.2,1.12908951]
[1728452729593,4.17327033,2451.6,2451.2,1.12908951]
[1728452730689,4.17327033,2451.6,2451.0,10.63548011]
[1728452731389,4.17327033,2451.6,2451.0,6.55552011]
[1728452731555,4.07915,2451.5,2451.0,6.55552011]
[1728452731985,0.09416709,2451.4,2451.0,6.55552011]
[1728452732354,0.09416709,2451.4,2451.0,10.63536011]
[1728452732565,0.09416709,2451.4,2451.1,1.06353601]
[1728452735297,0.09416709,2451.4,2451.1,5.14323601]
[1728452735590,4.07902,2451.6,2451.1,5.14323601]
[1728452735754,0.09417736,2451.5,2451.1,5.14323601]
[1728452736486,0.09417736,2451.5,2451.1,1.06353601]
[1728452736789,0.09417736,2451.5,2451.2,55.205]
[1728452737703,4.07913,2451.5,2451.2,55.205]
[1728452737866,0.0941111,2451.4,2451.2,55.205]
[1728452739303,8.15776,2451.7,2451.3,3.78722247]
[1728452739484,4.07897,2451.6,2451.3,3.78722247]
[1728452739696,4.07888,2451.7,2451.3,3.78722247]
[1728452740117,7.07859,2451.9,2451.3,3.78722247]
[1728452740118,11.15715,2451.9,2451.4,5.80453011]
[1728452740316,11.15715,2451.9,2451.4,9.89945036]
[1728452741018,3.0,2451.7,2451.4,1.72526011]
[1728452741919,3.0,2451.7,2451.3,0.8031]
[1728452742121,7.07881,2451.7,2451.3,0.8031]
[1728452746294,7.07881,2451.7,2451.3,4.88253]
[1728452746494,7.07881,2451.7,2451.3,8.97745025]
[1728452746708,7.07881,2451.7,2451.3,4.89802025]
[1728452749531,7.07881,2451.7,2451.3,8.97748025]
[1728452749708,3.0,2451.8,2451.4,1.72526011]
[1728452750035,7.07867,2451.8,2451.4,1.72526011]
[1728452750333,7.07867,2451.8,2451.5,0.7994]
[1728452752335,3.0,2451.8,2451.5,0.7994]
[1728452752544,7.07865,2451.8,2451.5,0.7994]
[1728452753603,0.09446892,2451.7,2451.5,0.7994]
[1728452753908,7.07865,2451.8,2451.5,0.7994]
[1728452754110,0.09438813,2451.6,2451.5,0.7994]
[1728452754328,7.07865,2451.8,2451.5,2.05492088]
[1728452754663,4.17328025,2451.7,2451.5,0.7994]
[1728452755984,4.07915,2451.5,2451.3,0.7924]
[1728452756335,0.09422918,2451.4,2451.3,0.7924]
[1728452757293,0.09422918,2451.4,2451.2,55.205]
[1728452758118,4.17356918,2451.4,2451.2,55.205]
[1728452758537,0.09422918,2451.4,2451.2,55.205]
[1728452759266,4.07946,2451.3,2451.2,55.205]
[1728452759595,48.18681683,2451.3,2451.2,3.12232748]
[1728452759809,53.67445498,2451.3,2451.2,0.18991102]
[1728452760118,4.08202,2449.8,2449.4,2.99236447]
[1728452760324,4.08226,2449.7,2449.4,2.99236447]
[1728452760510,4.08231,2449.6,2449.0,0.7717]
[1728452760669,4.08257,2449.5,2449.0,0.7717]
[1728452760883,4.17187056,2449.4,2449.0,0.7717]
[1728452761375,4.08291,2449.3,2449.0,0.7717]
[1728452761610,4.08291,2449.3,2448.8,0.7805]
[1728452761611,4.08313,2449.1,2448.8,0.7805]
[1728452761772,0.0889752,2449.2,2448.8,0.7805]
[1728452761971,0.08881328,2449.0,2448.9,4.08346]
[1728452762192,4.08257,2449.5,2448.8,4.86408]
[1728452762405,0.08877448,2449.0,2448.9,0.486408]
[1728452762721,0.08876977,2449.0,2448.9,0.486408]
[1728452763002,3.0,2449.4,2448.9,0.486408]
[1728452763211,4.08202,2449.8,2449.1,3.75045074]
[1728452763212,3.0,2449.6,2449.1,3.75045074]
[1728452763378,0.08901265,2449.3,2448.6,4.08382]
[1728452763585,7.08246,2449.5,2448.7,7.83410074]
[1728452763795,0.08883636,2449.2,2448.9,3.75045074]
[1728452763990,7.08246,2449.5,2448.9,3.75045074]
[1728452764191,0.0887554,2449.1,2448.9,3.75045074]
[1728452764374,7.08246,2449.5,2448.9,3.75045074]
[1728452764375,3.0,2449.5,2448.9,4.53386081]
[1728452764592,0.08867444,2449.0,2448.9,4.53386081]
[1728452764792,3.0,2449.5,2448.9,8.61732081]
[1728452764970,0.08866784,2449.0,2448.9,9.44372081]
[1728452765171,3.0,2449.5,2448.9,9.44372081]
[1728452765369,0.08866784,2449.0,2448.9,9.44372081]
[1728452765594,3.0,2449.5,2448.9,9.44372081]
[1728452765812,0.08864608,2449.0,2448.9,5.69327007]
[1728452766167,3.0,2449.5,2448.9,5.69327007]
[1728452766368,0.08876307,2449.0,2448.9,5.69327007]
[1728452766710,0.0887282,2449.0,2448.9,5.69327007]
[1728452767033,0.0887282,2449.0,2448.9,9.44372081]
[1728452767193,0.88078885,2450.0,2448.9,9.44372081]
[1728452767416,3.0,2449.5,2449.2,3.75045074]
[1728452767977,4.08208,2449.8,2449.2,3.75045074]
[1728452767978,3.0,2449.7,2449.2,3.75045074]
[1728452768908,0.08902462,2449.6,2449.2,3.75045074]
[1728452770795,0.08902462,2449.6,2449.2,7.83337074]
[1728452771403,0.08902462,2449.6,2449.2,9.16028322]
[1728452772025,0.08902462,2449.6,2449.2,5.07736322]
[1728452772206,0.08902462,2449.6,2449.2,9.16032322]
[1728452772608,0.08902462,2449.6,2449.3,0.7867]
[1728452773117,3.0,2449.5,2449.3,0.7867]
[1728452773722,0.0889428,2449.4,2449.3,0.7867]
[1728452774345,3.0,2449.7,2449.3,0.7867]
[1728452774547,0.0889481,2449.4,2449.3,0.7867]
[1728452774765,3.0,2449.7,2449.3,1.64871707]
[1728452775041,3.0,2449.7,2449.4,3.75045074]
[1728452775433,3.0,2449.7,2449.3,0.7867]
[1728452775632,7.08216,2449.7,2449.3,0.7867]
[1728452775971,3.0,2449.7,2449.4,3.75045074]
[1728452776849,3.0,2449.7,2449.3,0.7867]
[1728452777736,7.08214,2449.7,2449.3,0.7867]
[1728452779727,3.0,2449.7,2449.3,0.7867]
[1728452782334,8.16474,2449.6,2449.1,0.785]
[1728452782736,4.08232,2449.6,2449.1,0.785]
[1728452783123,4.08232,2449.6,2449.1,4.86812]
[1728452783631,0.08903786,2449.5,2449.1,4.86812]
[1728452784839,0.08903786,2449.5,2449.2,3.75045074]
[1728452785429,0.08895955,2449.4,2449.2,7.83339074]
[1728452785631,7.08224,2449.7,2449.2,7.83339074]
[1728452785927,0.08912142,2449.6,2449.2,7.83339074]
[1728452790554,0.08912142,2449.6,2449.2,1.73057022]
[1728452790756,4.17149142,2449.6,2449.1,4.86801]
[1728452791140,4.17149142,2449.6,2449.1,8.95102]
[1728452792864,0.08912142,2449.6,2449.2,4.08294]
[1728452797605,0.08912142,2449.6,2449.4,2.53507022]
[1728452797766,0.08912142,2449.6,2449.4,6.61754022]
[1728452798108,3.0,2449.9,2449.4,6.61754022]
[1728452798263,0.08931705,2449.8,2449.6,1.73057022]
[1728452802077,0.08931705,2449.8,2449.4,2.53507022]
[1728452802308,0.08931705,2449.8,2449.4,6.61766022]
[1728452802498,0.08931705,2449.8,2449.4,10.70020022]
[1728452802702,0.08931705,2449.8,2449.4,6.61761022]
[1728452803124,0.08931705,2449.8,2449.4,10.70015022]
[1728452804487,0.08931705,2449.8,2449.4,7.68762524]
[1728452804827,0.08931705,2449.8,2449.4,11.77017524]
[1728452805676,0.08931705,2449.8,2449.4,6.61761022]
[1728452805987,0.08931705,2449.8,2449.4,2.53507022]
[1728452805988,4.17131705,2449.8,2449.4,2.53507022]
[1728452806715,4.08214,2449.7,2449.4,1.73057022]
[1728452806926,0.08890092,2449.6,2449.4,1.73057022]
[1728452807493,4.17127092,2449.6,2449.2,0.8251]
[1728452809549,4.08267,2449.4,2449.1,1.73057022]
[1728452810149,0.08864084,2449.3,2449.1,1.73057022]
[1728452811011,0.08864084,2449.3,2448.9,1.73057022]
[1728452811223,8.25437084,2449.3,2448.9,1.73057022]
[1728452811524,0.08874449,2449.2,2448.9,1.73057022]
[1728452811722,8.16573,2449.3,2448.9,1.73057022]
[1728452812040,0.08874449,2449.2,2448.9,1.73057022]
[1728452812421,4.0828,2449.3,2448.9,1.73057022]
[1728452812639,0.08866353,2449.1,2448.9,1.73057022]
[1728452812829,4.0828,2449.3,2448.9,1.73057022]
[1728452813132,8.16571,2449.3,2448.9,1.73057022]
[1728452813485,0.08873653,2449.2,2448.6,4.08388]
[1728452813771,4.08323,2449.1,2448.6,5.81445022]
[1728452814054,4.08323,2449.1,2448.6,1.73057022]
[1728452814055,4.0833,2449.0,2448.6,1.73057022]
[1728452814264,4.171851,2449.1,2448.6,1.73057022]
[1728452814443,0.08842596,2448.9,2448.6,5.81451022]
[1728452814617,0.08842596,2448.9,2448.8,1.73057022]
[1728452814812,4.08323,2449.1,2448.8,1.73057022]
[1728452815067,0.08851593,2448.9,2448.8,1.73057022]
[1728452815217,3.0,2449.2,2448.8,1.73057022]
[1728452815550,7.08299,2449.2,2448.8,2.50417022]
[1728452815750,0.08869096,2449.1,2448.8,2.50417022]
[1728452820296,0.08869096,2449.1,2449.0,1.73057022]
[1728452820590,7.08267,2449.4,2449.0,1.73057022]
[1728452820796,0.08866071,2449.1,2449.0,1.73057022]
[1728452821099,3.0,2449.4,2449.0,1.73057022]
[1728452821280,0.08869247,2449.1,2449.0,5.81386022]
[1728452821468,3.0,2449.4,2449.0,1.73057022]
[1728452821861,0.08879086,2449.3,2449.0,1.73057022]
[1728452822367,0.08879086,2449.3,2449.0,5.81386022]
[1728452822566,0.08879086,2449.3,2449.0,1.73057022]
[1728452823370,0.08879086,2449.3,2448.9,4.08346]
[1728452823371,0.08879086,2449.3,2448.8,6.58770022]
[1728452823550,7.08305,2449.2,2448.8,2.50417022]
[1728452823757,0.08872351,2449.1,2448.8,2.50417022]
[1728452827365,0.08872351,2449.1,2449.0,1.73057022]
[1728452828091,4.17185351,2449.1,2449.0,1.73057022]
[1728452828290,0.08872351,2449.1,2448.8,0.7736]
[1728452828463,0.08872351,2449.1,2448.9,1.73057022]
[1728452831070,7.08263,2449.4,2448.9,1.73057022]
[1728452831287,0.08886494,2449.3,2448.9,1.73057022]
[1728452832098,4.17168494,2449.3,2448.9,1.73057022]
[1728452832319,3.0,2449.2,2448.9,1.73057022]
[1728452832526,0.08869517,2449.1,2448.9,1.73057022]
[1728452833692,0.08869517,2449.1,2449.0,0.8266]
[1728452834027,7.43,2449.6,2449.1,4.08312]
[1728452834241,4.08223,2449.7,2449.3,1.73057022]
[1728452834524,4.08238,2449.6,2449.3,1.73057022]
[1728452837017,8.16447,2449.7,2449.3,1.73057022]
[1728452837223,3.0,2449.6,2449.3,2.55927022]
[1728452837392,7.08241,2449.6,2449.3,2.55927022]
[1728452838227,3.0,2449.6,2449.3,2.55927022]
[1728452838808,8.16448,2449.7,2449.3,2.55927022]
[1728452839207,4.08223,2449.7,2449.3,2.55927022]
[1728452839834,7.08191,2449.9,2449.5,1.73057022]
[1728452839994,4.08191,2449.9,2449.7,1.73057022]
[1728452840195,4.08165,2450.0,2449.7,1.73057022]
[1728452840834,4.08183,2449.9,2449.7,1.73057022]
[1728452841632,7.08168,2450.0,2449.7,1.73057022]
[1728452842413,3.0,2450.0,2449.7,1.73057022]
[1728452842801,7.08173,2450.0,2449.7,1.73057022]
[1728452843538,0.08932825,2449.9,2449.7,1.73057022]
[1728452848985,0.08932825,2449.9,2449.8,0.7628]
[1728452849153,0.08932825,2449.9,2449.8,4.84476]
[1728452849351,4.08059,2450.7,2449.8,4.08196]
[1728452849550,0.0867353,2450.4,2450.3,2.50307022]
[1728452851763,0.0867353,2450.4,2450.3,6.58420022]
[1728452851989,4.71990084,2450.9,2450.4,4.08086]
[1728452852198,0.20724826,2451.0,2450.8,1.73057022]
[1728452853066,11.50991,2451.1,2450.8,1.73057022]
[1728452853388,3.0,2451.0,2450.8,2.50197022]
[1728452854122,0.6396135,2451.3,2450.8,2.50197022]
[1728452854399,4.07921,2451.5,2451.1,0.8325]
[1728452854607,4.07921,2451.5,2451.2,1.73057022]
[1728452854812,8.15844,2451.5,2451.2,1.73057022]
[1728452854967,4.07921,2451.5,2451.2,1.73057022]
[1728452855565,8.15847,2451.5,2451.2,1.73057022]
[1728452855866,4.07921,2451.5,2451.2,1.73057022]
[1728452856086,4.07932,2451.4,2451.2,1.73057022]
[1728452856502,4.07932,2451.4,2451.1,0.8325]
[1728452856662,7.07939,2451.4,2451.1,0.8325]
[1728452856863,7.07939,2451.4,2450.9,0.8102]
[1728452856864,4.0795,2451.3,2450.9,0.8102]
[1728452857266,8.15908,2451.3,2450.9,0.8102]
[1728452857473,4.07965,2451.2,2450.9,0.8102]
[1728452858478,4.0798,2451.1,2450.9,0.8102]
[1728452858713,4.16740821,2451.1,2450.9,0.8102]
[1728452859100,4.16740821,2451.1,2450.9,0.75293916]
[1728452859288,0.08760821,2451.1,2450.9,0.75293916]
[1728452859689,8.15909,2451.3,2450.9,0.75293916]
[1728452859911,0.08756233,2451.0,2450.9,0.75293916]
[1728452860070,4.0797,2451.2,2450.9,0.75293916]
[1728452860272,0.08758217,2451.0,2450.9,0.75293916]
[1728452860512,4.0797,2451.2,2450.9,0.75293916]
[1728452860694,0.08756043,2451.0,2450.9,0.75293916]
[1728452860898,4.0797,2451.2,2450.9,0.75293916]
[1728452861402,0.08762411,2451.1,2450.9,0.75293916]
[1728452861887,0.08762411,2451.1,2451.0,4.07996]
[1728452862225,0.08764393,2451.1,2451.0,4.07996]
[1728452862514,3.0,2451.4,2451.0,3.74390055]
[1728452862675,0.08764393,2451.1,2451.0,3.74390055]
[1728452862870,3.0,2451.4,2451.0,3.74390055]
[1728452863109,0.08763334,2451.1,2451.0,3.74390055]
[1728452863289,3.0,2451.4,2451.0,3.74390055]
[1728452863484,0.0876116,2451.1,2451.0,3.74390055]
[1728452863686,7.07933,2451.4,2451.0,3.74390055]
[1728452864211,0.08775419,2451.3,2451.0,3.74390055]
[1728452868746,4.16722419,2451.3,2450.9,0.75293916]
[1728452868927,8.24677419,2451.3,2450.9,0.75293916]
[1728452869133,4.16722419,2451.3,2450.9,0.75293916]
[1728452870488,4.16722419,2451.3,2450.7,0.763]
[1728452870718,4.07981,2451.1,2450.7,0.763]
[1728452871036,0.08746159,2451.0,2450.7,0.763]
[1728452871388,0.08746159,2451.0,2450.5,4.08067]
[1728452871389,0.08746159,2451.0,2450.5,0.7676]
[1728452871703,0.08746159,2451.0,2450.6,3.74390055]
[1728452871704,3.0,2451.0,2450.6,3.74390055]
[1728452871890,0.08738074,2450.9,2450.6,3.74390055]
[1728452876620,0.08658074,2450.9,2450.7,1.72851343]
[1728452876820,0.07938074,2450.9,2450.7,1.72851343]
[1728452877746,0.07298074,2450.9,2450.7,1.72851343]
[1728452878247,0.07138074,2450.9,2450.7,1.72851343]
[1728452878551,0.06658074,2450.9,2450.7,1.72851343]
[1728452878750,0.08358202,2450.9,2450.7,1.72851343]
[1728452879118,0.08038202,2450.9,2450.7,1.72851343]
[1728452879325,0.07638202,2450.9,2450.7,1.72851343]
[1728452879523,0.07558202,2450.9,2450.7,1.72851343]
[1728452879920,0.07398202,2450.9,2450.7,1.72851343]
[1728452880136,0.07238202,2450.9,2450.7,1.72851343]
[1728452880336,0.06838202,2450.9,2450.7,1.72851343]
[1728452880856,0.06598202,2450.9,2450.8,0.7544]
[1728452881061,0.08297135,2450.9,2450.8,1.41073634]
[1728452881359,4.07963,2451.2,2450.8,1.41073634]
[1728452881527,4.07963,2451.2,2450.9,1.72851343]
[1728452883064,4.0798,2451.1,2450.8,0.7544]
[1728452883253,4.07997,2451.0,2450.7,1.72851343]
[1728452883823,4.08013,2450.9,2450.6,1.72851343]
[1728452884151,4.08031,2450.8,2450.6,1.72851343]
[1728452884353,0.0828812,2450.7,2450.6,1.72851343]
[1728452884544,4.08031,2450.8,2450.6,1.72851343]
[1728452884868,0.0828812,2450.7,2450.6,1.72851343]
[1728452885567,4.08031,2450.8,2450.6,1.72851343]
[1728452885728,0.0828812,2450.7,2450.6,1.72851343]
[1728452885925,4.08031,2450.8,2450.6,1.72851343]
[1728452886128,0.08286516,2450.7,2450.6,1.72851343]
[1728452886430,8.16039,2450.9,2450.6,1.72851343]
[1728452886625,0.08286516,2450.7,2450.6,1.72851343]
[1728452886830,4.08013,2450.9,2450.6,1.72851343]
[1728452887065,0.08286516,2450.7,2450.6,1.72851343]
[1728452887273,4.08013,2450.9,2450.6,1.72851343]
[1728452887475,0.08286516,2450.7,2450.6,1.72851343]
[1728452887682,4.08013,2450.9,2450.6,1.72851343]
[1728452888199,0.08294335,2450.8,2450.6,1.72851343]
[1728452890583,4.07991,2451.1,2450.6,5.80911343]
[1728452890800,4.07991,2451.1,2451.0,1.72851343]
[1728452890801,3.0,2451.1,2451.0,1.72851343]
[1728452890947,3.0,2451.2,2451.0,1.72851343]
[1728452893198,7.07963,2451.2,2451.0,1.72851343]
[1728452893644,3.0,2451.2,2451.0,1.72851343]
[1728452894070,4.07956,2451.3,2451.0,1.98019477]
[1728452894275,4.07956,2451.3,2451.2,1.72851343]
[1728452896315,4.0793,2451.4,2451.2,1.72851343]
[1728452896668,3.0,2451.4,2451.2,1.72851343]
[1728452896997,3.0,2451.5,2451.2,2.54021343]
[1728452897207,3.0,2451.5,2451.4,1.72851343]
[1728452897493,3.0,2451.7,2451.4,1.72851343]
[1728452897678,7.07883,2451.7,2451.6,1.72851343]
[1728452898053,3.0,2451.7,2451.6,1.72851343]
[1728452898497,3.0,2451.8,2451.6,1.72851343]
[1728452898993,3.0,2451.9,2451.6,1.72851343]
[1728452899197,3.0,2451.9,2451.5,0.7688]
[1728452899198,0.63950566,2452.1,2451.8,1.72851343]
[1728452899501,0.63950566,2452.1,2452.0,1.72851343]
[1728452899502,5.37306993,2452.1,2452.0,1.72851343]
[1728452899862,4.73356427,2452.1,2452.0,1.72851343]
[1728452900471,7.73356427,2452.1,2452.0,1.72851343]
[1728452900700,3.65529427,2452.1,2451.8,1.72851343]
[1728452900999,7.0786,2451.9,2451.8,1.72851343]
[1728452901770,3.0,2451.9,2451.8,1.72851343]
[1728452902459,7.07846,2451.9,2451.8,1.72851343]
[1728452903616,7.15647109,2451.9,2451.8,1.72851343]
[1728452904017,4.07896,2451.6,2451.5,0.7688]
[1728452904319,4.07896,2451.6,2451.0,8.15972]
[1728452904320,4.07938,2451.4,2451.3,1.72851343]
[1728452904677,4.15688949,2451.4,2451.3,1.72851343]
[1728452905085,4.07958,2451.3,2451.0,0.7668]
[1728452905315,4.07958,2451.3,2451.2,1.72851343]
[1728452906380,4.07938,2451.4,2451.2,1.72851343]
[1728452906580,4.07946,2451.3,2451.2,1.72851343]
[1728452911245,4.07938,2451.4,2451.0,1.72851343]
[1728452911246,4.07965,2451.2,2451.0,1.72851343]
[1728452911606,4.07949,2451.3,2451.0,1.72851343]
[1728452911803,4.07949,2451.3,2451.2,1.72851343]
[1728452912007,8.15879,2451.4,2451.2,1.72851343]
[1728452912539,4.07938,2451.4,2451.2,1.72851343]
[1728452912742,4.07946,2451.3,2451.0,1.72851343]
[1728452913237,4.07946,2451.3,2450.6,4.08051]
[1728452913238,4.08013,2450.9,2450.5,0.7505]
[1728452913435,4.08013,2450.9,2450.6,1.72851343]
[1728452917435,4.08013,2450.9,2450.6,2.45922928]
[1728452918567,0.07692111,2450.8,2450.6,2.45922928]
[1728452924069,7.07996,2451.0,2450.6,2.45922928]
[1728452924364,7.07996,2451.0,2450.6,1.72851343]
[1728452924732,0.07699522,2450.9,2450.6,1.72851343]
[1728452925442,0.07699522,2450.9,2450.8,1.72851343]
[1728452926873,4.15712522,2450.9,2450.8,1.72851343]
[1728452927463,4.15712522,2450.9,2450.6,1.72851343]
[1728452934908,4.08055,2450.7,2450.2,6.58590343]
[1728452935189,0.07680302,2450.6,2450.2,3.32099043]
[1728452935377,4.08063,2450.6,2450.3,0.74023404]
[1728452935584,0.07672215,2450.5,2450.3,0.74023404]
[1728452939467,4.15755215,2450.5,2450.2,2.50471343]
[1728452939668,0.07672215,2450.5,2450.2,2.50471343]
[1728452945725,0.07672215,2450.5,2450.4,1.72851343]
[1728452945875,0.07672215,2450.5,2450.4,6.59667343]
[1728452946224,11.51008,2451.0,2450.6,4.08063]
[1728452946455,7.43,2451.0,2450.8,1.72851343]
[1728452946724,7.43,2451.0,2450.8,2.54181343]
[1728452946922,11.50999,2451.0,2450.8,0.8133]
[1728452947123,15.59012,2451.0,2450.6,2.54181343]
[1728452948024,11.50999,2451.0,2450.6,2.54181343]
[1728452948217,15.59008,2451.0,2450.6,2.54181343]
[1728452948423,4.08016,2450.9,2450.6,2.54181343]
[1728452948779,0.07685537,2450.8,2450.6,2.54181343]
[1728452949214,0.07685537,2450.8,2450.6,3.31085801]
[1728452952881,8.1601,2451.0,2450.6,3.31085801]
[1728452953235,0.07694295,2450.9,2450.6,3.31085801]
[1728452957132,4.15711295,2450.9,2450.6,3.31085801]
[1728452957306,4.15711295,2450.9,2450.6,2.54181343]
[1728452957506,4.08031,2450.8,2450.6,2.54181343]
[1728452957707,4.08031,2450.8,2450.6,0.8133]
[1728452957935,0.07677451,2450.7,2450.6,0.8133]
[1728452958236,4.08031,2450.8,2450.6,0.8133]
[1728452958540,0.07677451,2450.7,2450.6,0.8133]
[1728452958924,4.08031,2450.8,2450.6,0.8133]
[1728452959155,0.07677451,2450.7,2450.6,0.8133]
[1728452959452,4.08031,2450.8,2450.6,0.8133]
[1728452959657,0.07676915,2450.7,2450.6,0.8133]
[1728452959826,4.08031,2450.8,2450.6,0.8133]
[1728452960028,0.07676915,2450.7,2450.6,0.8133]
[1728452960268,4.08031,2450.8,2450.6,0.8133]
[1728452960468,0.07676915,2450.7,2450.6,0.8133]
[1728452960770,4.08056,2450.7,2450.3,0.8192]
[1728452960924,4.08072,2450.6,2450.3,0.8192]
[1728452961478,4.08099,2450.4,2450.0,4.90072]
[1728452961677,0.07660742,2450.5,2450.2,1.72851343]